fUST/lending_fUST_20250828
["ID","MTS","AMOUNT","RATE_DAILY","PERIOD"]
[381741723,1756326649841,-276.60101797,0.00022191,2]
[381741725,1756326649851,-480.0,0.00022191,2]
[381741727,1756326649861,-480.0,0.00022191,2]
[381741729,1756326649870,-480.0,0.00022191,2]
[381741731,1756326649880,-480.0,0.00022191,2]
[381741733,1756326649891,-658.23,0.00022191,2]
[381741735,1756326649901,-480.0,0.00022191,2]
[381741737,1756326649910,-480.0,0.00022191,2]
[381741739,1756326649919,-480.0,0.00022191,2]
[381741741,1756326649928,-151.0,0.00022191,7]
[381741743,1756326649940,-480.0,0.00022191,2]
[381741745,1756326649949,-480.0,0.00022191,2]
[381741747,1756326649958,-480.0,0.00022191,2]
[381741749,1756326649968,-580.60455557,0.00022191,2]
[381741751,1756326649979,-868.81,0.00022191,2]
[381741753,1756326649989,-480.0,0.00022191,2]
[381741755,1756326649998,-480.0,0.00022191,2]
[381741757,1756326650007,-480.0,0.00022191,2]
[381741759,1756326650017,-480.0,0.00022191,2]
[381741761,1756326650026,-480.0,0.00022191,2]
[381741763,1756326650035,-480.0,0.00022191,2]
[381741765,1756326650045,-480.0,0.00022191,2]
[381741767,1756326650054,-480.0,0.00022191,2]
[381741769,1756326650063,-1054.74,0.00022191,2]
[381741771,1756326650073,-480.0,0.00022191,2]
[381741773,1756326650082,-482.74,0.00022191,2]
[381741775,1756326650091,-480.0,0.00022191,2]
[381741778,1756326650101,-480.0,0.00022191,2]
[381741780,1756326650111,-635.83,0.00022191,2]
[381741782,1756326650121,-480.0,0.00022191,2]
[381741784,1756326650130,-480.0,0.00022191,2]
[381741786,1756326650139,-480.0,0.00022191,2]
[381741788,1756326650149,-480.0,0.00022191,2]
[381741790,1756326650158,-480.0,0.00022191,2]
[381741792,1756326650169,-151.0,0.00022191,7]
[381741794,1756326650178,-480.0,0.00022191,2]
[381741796,1756326650188,-480.0,0.00022191,2]
[381741798,1756326650197,-480.0,0.00022191,2]
[381741800,1756326650206,-480.0,0.00022191,2]
[381741802,1756326650215,-480.0,0.00022191,2]
[381741804,1756326650227,-481.21499859,0.00022191,2]
[381741806,1756326650235,-480.0,0.00022191,2]
[381741808,1756326650245,-480.0,0.00022191,2]
[381741810,1756326650254,-480.0,0.00022191,2]
[381741812,1756326650263,-535.15968138,0.00022191,2]
[381741814,1756326650272,-480.0,0.00022191,2]
[381741816,1756326650282,-591.19,0.00022191,2]
[381741818,1756326650291,-480.0,0.00022191,2]
[381741820,1756326650301,-481.36,0.00022191,2]
[381741822,1756326650310,-480.0,0.00022191,2]
[381741824,1756326650320,-480.0,0.00022191,2]
[381741827,1756326650329,-480.0,0.00022191,2]
[381741829,1756326650338,-151.0,0.00022191,7]
[381741831,1756326650347,-480.0,0.00022191,2]
[381741833,1756326650356,-480.0,0.00022191,2]
[381741835,1756326650365,-480.0,0.00022191,2]
[381741837,1756326650375,-480.0,0.00022191,2]
[381741839,1756326650384,-480.0,0.00022191,2]
[381741841,1756326650395,-480.0,0.00022191,2]
[381741843,1756326650404,-151.0,0.00022191,7]
[381741845,1756326650414,-480.0,0.00022191,2]
[381741847,1756326650423,-151.0,0.00022191,7]
[381741849,1756326650433,-480.0,0.00022191,2]
[381741851,1756326650442,-480.0,0.00022191,2]
[381741853,1756326650451,-480.0,0.00022191,2]
[381741855,1756326650460,-480.0,0.00022191,2]
[381741857,1756326650469,-480.0,0.00022191,2]
[381741859,1756326650481,-480.0,0.00022191,2]
[381741861,1756326650490,-480.0,0.00022191,2]
[381741863,1756326650499,-480.0,0.00022191,2]
[381741865,1756326650509,-480.0,0.00022191,2]
[381741867,1756326650518,-480.0,0.00022191,2]
[381741869,1756326650528,-480.0,0.00022191,2]
[381741871,1756326650537,-480.0,0.00022191,2]
[381741873,1756326650547,-271.83694092,0.00022191,2]
[381741875,1756326650555,-480.0,0.00022191,2]
[381741877,1756326650565,-480.0,0.00022191,2]
[381741879,1756326650575,-480.0,0.00022191,2]
[381741881,1756326650584,-563.43762404,0.00022191,2]
[381741883,1756326650593,-480.0,0.00022191,2]
[381741885,1756326650602,-480.0,0.00022191,2]
[381741887,1756326650611,-482.36894063,0.00022191,2]
[381741889,1756326650621,-480.0,0.00022191,2]
[381741891,1756326650630,-151.0,0.00022191,7]
[381741894,1756326650639,-522.68,0.00022191,2]
[381741896,1756326650648,-480.0,0.00022191,2]
[381741898,1756326650657,-480.0,0.00022191,2]
[381741900,1756326650666,-480.0,0.00022191,2]
[381741902,1756326650677,-480.0,0.00022191,2]
[381741904,1756326650686,-480.0,0.00022191,2]
[381741906,1756326650696,-480.0,0.00022191,2]
[381741908,1756326650705,-490.84,0.00022191,2]
[381741910,1756326650715,-480.0,0.00022191,2]
[381741912,1756326650726,-480.0,0.00022191,2]
[381741914,1756326650735,-480.0,0.00022191,2]
[381741916,1756326650744,-480.0,0.00022191,2]
[381741918,1756326650753,-480.0,0.00022191,2]
[381741920,1756326650762,-480.0,0.00022191,2]
[381741922,1756326650772,-480.0,0.00022191,2]
[381741924,1756326650781,-480.0,0.00022191,2]
[381741926,1756326650790,-480.0,0.00022191,2]
[381741928,1756326650800,-480.0,0.00022191,2]
[381741930,1756326650810,-587.66,0.00022191,2]
[381741933,1756326650819,-480.0,0.00022191,2]
[381741935,1756326650828,-480.0,0.00022191,2]
[381741937,1756326650838,-480.0,0.00022191,2]
[381741939,1756326650850,-151.0,0.00022191,7]
[381741941,1756326650859,-480.0,0.00022191,2]
[381741943,1756326650868,-480.0,0.00022191,2]
[381741945,1756326650878,-480.0,0.00022191,2]
[381741947,1756326650890,-480.0,0.00022191,2]
[381741949,1756326650899,-480.0,0.00022191,2]
[381741951,1756326650908,-480.0,0.00022191,2]
[381741953,1756326650918,-490.94,0.00022191,2]
[381741955,1756326650929,-826.46,0.00022191,2]
[381741957,1756326650938,-262.70740633,0.00022191,2]
[381741959,1756326650947,-480.0,0.00022191,2]
[381741961,1756326650958,-480.0,0.00022191,2]
[381741963,1756326650967,-528.24,0.00022191,2]
[381741965,1756326650977,-480.0,0.00022191,2]
[381741967,1756326650986,-480.0,0.00022191,2]
[381741969,1756326650995,-480.0,0.00022191,2]
[381741971,1756326651004,-664.72,0.00022191,2]
[381741973,1756326651013,-153.298943,0.00022191,7]
[381741975,1756326651023,-557.05,0.00022191,2]
[381741977,1756326651033,-151.0,0.00022191,7]
[381741979,1756326651042,-151.0,0.00022191,7]
[381741981,1756326651051,-480.0,0.00022191,2]
[381741983,1756326651060,-151.0,0.00022191,7]
[381741985,1756326651069,-480.0,0.00022191,2]
[381741987,1756326651078,-480.0,0.00022191,2]
[381741989,1756326651088,-480.0,0.00022191,2]
[381741991,1756326651097,-498.25,0.00022191,2]
[381741993,1756326651107,-480.0,0.00022191,2]
[381741995,1756326651117,-480.0,0.00022191,2]
[381741997,1756326651127,-480.0,0.00022191,2]
[381741999,1756326651136,-480.0,0.00022191,2]
[381742001,1756326651146,-480.0,0.00022191,2]
[381742003,1756326651155,-480.0,0.00022191,2]
[381742005,1756326651164,-480.0,0.00022191,2]
[381742007,1756326651173,-480.0,0.00022191,2]
[381742009,1756326651183,-480.0,0.00022191,2]
[381742011,1756326651193,-151.0,0.00022191,7]
[381742013,1756326651203,-1657.75,0.00022191,2]
[381742015,1756326651212,-288.965245,0.00022191,7]
[381742017,1756326651221,-854.89,0.00022191,2]
[381742019,1756326651233,-930.22,0.00022191,2]
[381742021,1756326651243,-560.82,0.00022191,2]
[381742023,1756326651252,-480.0,0.00022191,2]
[381742025,1756326651261,-294.07531134,0.00022191,2]
[381742027,1756326651271,-480.0,0.00022191,2]
[381742029,1756326651281,-480.0,0.00022191,2]
[381742032,1756326651290,-480.0,0.00022191,2]
[381742034,1756326651299,-900.2,0.00022191,2]
[381742036,1756326651309,-480.0,0.00022191,2]
[381742038,1756326651318,-152.44941628,0.00022191,2]
[381742040,1756326651328,-480.0,0.00022191,2]
[381742047,1756326651384,-681.27,0.00022191,2]
[381742049,1756326651393,-480.0,0.00022191,2]
[381742051,1756326651403,-480.0,0.00022191,2]
[381742053,1756326651412,-151.0,0.00022191,7]
[381742055,1756326651421,-458.45181433,0.00022191,2]
[381742057,1756326651430,-480.0,0.00022191,2]
[381742059,1756326651439,-480.0,0.00022191,2]
[381742061,1756326651448,-570.56,0.00022191,2]
[381742063,1756326651457,-480.0,0.00022191,2]
[381742065,1756326651466,-1051.04,0.00022191,2]
[381742067,1756326651476,-480.0,0.00022191,2]
[381742069,1756326651486,-480.0,0.00022191,2]
[381742071,1756326651495,-789.8,0.00022191,2]
[381742073,1756326651504,-480.0,0.00022191,2]
[381742075,1756326651512,-480.0,0.00022191,2]
[381742077,1756326651521,-480.0,0.00022191,2]
[381742079,1756326651531,-151.0,0.00022191,7]
[381742081,1756326651540,-480.0,0.00022191,2]
[381742083,1756326651549,-902.44,0.00022191,2]
[381742085,1756326651558,-480.0,0.00022191,2]
[381742087,1756326651567,-520.88314177,0.00022191,2]
[381742089,1756326651575,-480.0,0.00022191,2]
[381742091,1756326651584,-151.0,0.00022191,7]
[381742093,1756326651594,-480.0,0.00022191,2]
[381742095,1756326651603,-480.0,0.00022191,2]
[381742097,1756326651612,-480.0,0.00022191,2]
[381742099,1756326651620,-480.0,0.00022191,2]
[381742101,1756326651629,-479.68346348,0.00022191,2]
[381742132,1756326651903,-151.0,0.00022,7]
[381742134,1756326651912,-425.44119842,0.00022,7]
[381742136,1756326651921,-250.0,0.00022144,2]
[381742138,1756326651932,-5576.04653652,0.00022191,2]
[381742140,1756326651940,-480.0,0.00022191,2]
[381742142,1756326651949,-1264.07,0.00022191,2]
[381742144,1756326651959,-480.0,0.00022191,2]
[381742146,1756326651968,-480.0,0.00022191,2]
[381742148,1756326651977,-614.6,0.00022191,2]
[381742150,1756326651986,-537.52,0.00022191,2]
[381742152,1756326651996,-760.67,0.00022191,2]
[381742154,1756326652005,-480.0,0.00022191,2]
[381742156,1756326652015,-480.0,0.00022191,2]
[381742158,1756326652025,-480.0,0.00022191,2]
[381742160,1756326652034,-480.0,0.00022191,2]
[381742162,1756326652043,-500.0,0.00022191,2]
[381742164,1756326652052,-480.0,0.00022191,2]
[381742166,1756326652061,-480.0,0.00022191,2]
[381742168,1756326652070,-602.5,0.00022191,2]
[381742170,1756326652079,-480.0,0.00022191,2]
[381742172,1756326652089,-480.0,0.00022191,2]
[381742174,1756326652098,-828.33,0.00022191,2]
[381742176,1756326652107,-486.91,0.00022191,2]
[381742178,1756326652116,-480.0,0.00022191,2]
[381742180,1756326652125,-480.0,0.00022191,2]
[381742182,1756326652134,-688.34,0.00022191,2]
[381742184,1756326652143,-555.62,0.00022191,2]
[381742186,1756326652152,-195.41999239,0.00022191,2]
[381742188,1756326652161,-480.0,0.00022191,2]
[381742190,1756326652170,-480.0,0.00022191,2]
[381742192,1756326652178,-480.0,0.00022191,2]
[381742194,1756326652187,-480.0,0.00022191,2]
[381742196,1756326652196,-480.0,0.00022191,2]
[381742198,1756326652205,-480.0,0.00022191,2]
[381742200,1756326652215,-480.0,0.00022191,2]
[381742202,1756326652224,-480.0,0.00022191,2]
[381742204,1756326652238,-480.0,0.00022191,2]
[381742206,1756326652247,-480.0,0.00022191,2]
[381742208,1756326652255,-480.0,0.00022191,2]
[381742210,1756326652264,-480.0,0.00022191,2]
[381742212,1756326652273,-480.0,0.00022191,2]
[381742214,1756326652282,-151.0,0.00022191,7]
[381742217,1756326652291,-480.0,0.00022191,2]
[381742218,1756326652301,-480.0,0.00022191,2]
[381742220,1756326652310,-296.20617396,0.00022191,2]
[381742222,1756326652320,-480.0,0.00022191,2]
[381742224,1756326652329,-151.0,0.00022191,7]
[381742226,1756326652338,-480.0,0.00022191,2]
[381742228,1756326652347,-480.0,0.00022191,2]
[381742230,1756326652356,-1219.25,0.00022191,2]
[381742232,1756326652365,-480.0,0.00022191,2]
[381742234,1756326652374,-480.0,0.00022191,2]
[381742237,1756326652383,-480.0,0.00022191,2]
[381742239,1756326652392,-480.0,0.00022191,2]
[381742241,1756326652401,-288.666736,0.00022191,7]
[381742243,1756326652411,-480.0,0.00022191,2]
[381742244,1756326652420,-1153.81,0.00022191,2]
[381742246,1756326652429,-151.0,0.00022191,7]
[381742249,1756326652438,-195.691296,0.00022191,7]
[381742251,1756326652447,-480.0,0.00022191,2]
[381742253,1756326652456,-480.0,0.00022191,2]
[381742255,1756326652465,-480.0,0.00022191,2]
[381742256,1756326652475,-647.91,0.00022191,2]
[381742258,1756326652484,-480.0,0.00022191,2]
[381742260,1756326652494,-480.0,0.00022191,2]
[381742262,1756326652503,-480.0,0.00022191,2]
[381742264,1756326652512,-480.0,0.00022191,2]
[381742266,1756326652521,-480.0,0.00022191,2]
[381742268,1756326652530,-647.4,0.00022191,2]
[381742270,1756326652539,-480.0,0.00022191,2]
[381742272,1756326652548,-480.0,0.00022191,2]
[381742274,1756326652557,-480.0,0.00022191,2]
[381742276,1756326652566,-607.65,0.00022191,2]
[381742278,1756326652575,-480.0,0.00022191,2]
[381742280,1756326652585,-480.0,0.00022191,2]
[381742282,1756326652594,-480.0,0.00022191,2]
[381742284,1756326652603,-480.0,0.00022191,2]
[381742286,1756326652612,-675.35,0.00022191,2]
[381742289,1756326652621,-480.0,0.00022191,2]
[381742290,1756326652630,-797.57,0.00022191,2]
[381742293,1756326652640,-480.0,0.00022191,2]
[381742294,1756326652649,-480.0,0.00022191,2]
[381742296,1756326652658,-480.0,0.00022191,2]
[381742298,1756326652666,-553.15,0.00022191,2]
[381742300,1756326652675,-716.89,0.00022191,2]
[381742302,1756326652684,-480.0,0.00022191,2]
[381742304,1756326652693,-480.0,0.00022191,2]
[381742306,1756326652702,-1070.97,0.00022191,2]
[381742309,1756326652712,-559.42350719,0.00022191,2]
[381742311,1756326652722,-480.0,0.00022191,2]
[381742313,1756326652732,-480.0,0.00022191,2]
[381742315,1756326652741,-1124.99,0.00022191,2]
[381742317,1756326652750,-571.99,0.00022191,2]
[381742319,1756326652759,-480.0,0.00022191,2]
[381742321,1756326652768,-491.79,0.00022191,2]
[381742323,1756326652777,-538.61,0.00022191,2]
[381742325,1756326652786,-151.0,0.00022191,7]
[381742327,1756326652795,-1502.45,0.00022191,2]
[381742328,1756326652804,-480.0,0.00022191,2]
[381742330,1756326652813,-480.0,0.00022191,2]
[381742332,1756326652822,-480.0,0.00022191,2]
[381742334,1756326652831,-36.11576382,0.00022191,2]
[381742848,1756326733619,1612.55452778,0.000199,2]
[381742851,1756326800537,370000.0,0.00020073,2]
[381742852,1756326875068,235.19655807,0.00020065,2]
[381742853,1756326914130,1558.8027104,0.000199,2]
[381742854,1756326955378,160.555977,0.00013699,2]
[381742861,1756327089763,1506.84261986,0.000199,2]
[381742882,1756327265078,1456.61453257,0.000199,2]
[381742888,1756327444453,1408.06071504,0.000199,2]
[381742893,1756327617797,63000.0,0.00030543,120]
[381742894,1756327621136,1361.12535764,0.000199,2]
[381742895,1756327622430,162.06972335,0.00019963,2]
[381742898,1756327801307,1315.75451254,0.000199,2]
[381742923,1756327831854,-178.553047,0.00020931,2]
[381742926,1756327831863,-300.0,0.00021604,2]
[381742928,1756327831872,-228.0,0.00021604,2]
[381742930,1756327831882,-414.0,0.00021605,2]
[381742932,1756327831891,-528.24130685,0.00021605,2]
[381742934,1756327831901,-500.0,0.00021605,2]
[381742936,1756327831910,-204.34208241,0.00021605,2]
[381742938,1756327831919,-500.0,0.00021605,2]
[381742940,1756327831929,-165.99479489,0.00021605,2]
[381742942,1756327831939,-306.13812791,0.00021605,2]
[381742944,1756327831948,-500.0,0.00021605,2]
[381742946,1756327831957,-500.0,0.00021605,2]
[381742948,1756327831966,-500.0,0.00021605,2]
[381742950,1756327831976,-500.0,0.00021605,2]
[381742966,1756327832196,-390.83261803,0.00021605,2]
[381742968,1756327832208,-500.0,0.00021605,2]
[381742969,1756327832218,-250.0,0.00021605,2]
[381742970,1756327832227,-500.0,0.00021605,2]
[381742971,1756327832236,-50000.0,0.00021606,2]
[381742972,1756327832246,-800.0,0.00021612,2]
[381742973,1756327832255,-1315.75451233,0.00021627,2]
[381742974,1756327832264,-183.025044,0.000218,4]
[381742975,1756327832274,-194.72792766,0.00021804,2]
[381742976,1756327832284,-6335.82584504,0.00021804,2]
[381742977,1756327832293,-895.63,0.00021807,10]
[381742978,1756327832302,-842.6,0.00021807,3]
[381742979,1756327832311,-621.97,0.00021807,10]
[381742980,1756327832320,-702.17,0.00021807,3]
[381742981,1756327832329,-821.82,0.00021807,10]
[381742982,1756327832338,-351.09,0.00021807,3]
[381742983,1756327832347,-28921.69435612,0.00021817,2]
[381742984,1756327832359,-2193.873814,0.00021817,2]
[381743023,1756327837832,-684.85,0.00021807,10]
[381743025,1756327837841,-175.54,0.00021807,3]
[381743027,1756327837851,-567.34336685,0.00021817,2]
[381743029,1756327837862,-5899.95210121,0.00021817,2]
[381743031,1756327837873,-858.0,0.00021817,2]
[381743033,1756327837884,-638.55,0.00021817,2]
[381743036,1756327837895,-1908.16636108,0.00021817,2]
[381743038,1756327837906,-294.42607542,0.00021817,2]
[381743049,1756327838007,-244047.33589794,0.00021817,2]
[381743052,1756327838022,-1138.2000001,0.00021817,2]
[381743228,1756327839969,-220.0,0.00020591,2]
[381743230,1756327839979,-46.85358645,0.00021817,2]
[381743232,1756327839990,-33705.0,0.00021817,2]
[381743565,1756327842960,-539.50903155,0.00021817,2]
[381743571,1756327843015,-49241.09540928,0.00021817,2]
[381743574,1756327843026,-773.3068366,0.00021817,2]
[381743576,1756327843036,-500.0,0.00021917,2]
[381743578,1756327843045,-480.0,0.00021917,2]
[381743580,1756327843054,-480.0,0.00021917,2]
[381743582,1756327843063,-427.15506439,0.00021917,2]
[381743584,1756327843072,-480.0,0.00021917,2]
[381743586,1756327843081,-480.0,0.00021917,2]
[381743588,1756327843091,-480.0,0.00021917,2]
[381743590,1756327843100,-480.0,0.00021917,2]
[381743592,1756327843109,-480.0,0.00021917,2]
[381743594,1756327843118,-480.0,0.00021917,2]
[381743596,1756327843127,-480.0,0.00021917,2]
[381743599,1756327843136,-480.0,0.00021917,2]
[381743602,1756327843146,-399.87873933,0.00021917,2]
[381743605,1756327843158,-80.12126067,0.00021917,2]
[381743608,1756327843167,-480.0,0.00021917,2]
[381743611,1756327843176,-445.70616439,0.00021917,2]
[381743617,1756327843200,-34.29383561,0.00021917,2]
[381743619,1756327843213,-293.34184249,0.00021917,2]
[381743621,1756327843226,-186.65815751,0.00021917,2]
[381743623,1756327843235,-200.04554455,0.00021917,2]
[381743625,1756327843244,-480.0,0.00021917,2]
[381743627,1756327843254,-239.71080243,0.00021917,2]
[381743888,1756327845923,-570.71,0.00021907,10]
[381743890,1756327845933,-240.28919757,0.00021917,2]
[381743892,1756327845943,-480.0,0.00021917,2]
[381743894,1756327845953,-480.0,0.00021917,2]
[381743896,1756327845962,-480.0,0.00021917,2]
[381743898,1756327845972,-480.0,0.00021917,2]
[381743900,1756327845981,-480.0,0.00021917,2]
[381743902,1756327845990,-480.0,0.00021917,2]
[381743904,1756327845999,-480.0,0.00021917,2]
[381743906,1756327846008,-208.45323425,0.00021917,2]
[381743908,1756327846019,-271.54676575,0.00021917,2]
[381743910,1756327846028,-480.0,0.00021917,2]
[381743912,1756327846038,-480.0,0.00021917,2]
[381743914,1756327846047,-480.0,0.00021917,2]
[381743916,1756327846057,-186.64213205,0.00021917,2]
[381744790,1756327978742,1228.03754488,0.000199,2]
[381744810,1756328163979,1187.10296007,0.000199,2]
[381744812,1756328314603,160.555977,0.00013699,2]
[381744813,1756328342514,1147.53286143,0.000199,2]
[381744819,1756328520324,1109.28176602,0.000199,2]
[381744820,1756328698410,1072.30570723,0.000199,2]
[381744822,1756328812130,-261.56813611,0.00021612,2]
[381744823,1756328878368,1036.56218353,0.000199,2]
[381744867,1756329032140,-538.43186389,0.00021612,2]
[381744869,1756329032150,-1036.56218352,0.00021627,2]
[381744871,1756329032160,-400.0,0.000217,2]
[381744873,1756329032170,-515.53789106,0.000217,2]
[381744875,1756329032180,-200.0,0.000217,3]
[381744876,1756329032189,-300.0,0.00021706,2]
[381744878,1756329032199,-778.24,0.00021707,3]
[381744880,1756329032208,-389.12,0.00021707,3]
[381744882,1756329032217,-324.26,0.00021707,3]
[381744884,1756329032226,-648.57,0.00021707,3]
[381744886,1756329032236,-358.1,0.00021707,10]
[381744887,1756329032245,-248.68,0.00021707,10]
[381744888,1756329032255,-374.46,0.00021707,10]
[381744890,1756329032264,-500.0,0.00021716,2]
[381744893,1756329032274,-500.0,0.00021716,2]
[381744895,1756329032283,-298.58283262,0.00021716,2]
[381744897,1756329032292,-500.0,0.00021716,2]
[381744899,1756329032301,-500.0,0.00021716,2]
[381744901,1756329032310,-500.0,0.00021716,2]
[381744904,1756329032319,-500.0,0.00021716,2]
[381744906,1756329032329,-41971.77602473,0.00021717,2]
[381744908,1756329032340,-31555.35557191,0.00021717,2]
[381744910,1756329032351,-1430.249985,0.00021717,2]
[381744912,1756329032362,-440.0,0.00021717,2]
[381744915,1756329032377,-337.94154878,0.00021717,2]
[381745407,1756329038280,-500.0,0.00021701,2]
[381745409,1756329038290,-464.09053622,0.00021701,2]
[381745411,1756329038300,-2335.60946378,0.00021717,2]
[381745413,1756329038311,-16503.5364,0.00021717,2]
[381746542,1756329056388,967.45803801,0.000199,2]
[381746543,1756329237065,935.20943683,0.000199,2]
[381746546,1756329417258,904.03578881,0.000199,2]
[381746547,1756329471216,-26188.42,0.00030555,7]
[381746548,1756329471239,-251.0,0.00030555,30]
[381746549,1756329471264,-1013.28118492,0.00030555,30]
[381746550,1756329471289,-163788.83880223,0.00030555,20]
[381746551,1756329471313,-866.14,0.00030555,30]
[381746552,1756329471337,-467.17,0.00030555,30]
[381746553,1756329471362,-784545.74567569,0.00030555,20]
[381746554,1756329471384,-1461.07309763,0.00030555,7]
[381746555,1756329471407,-21418.33123953,0.00030555,10]
[381746556,1756329485912,-50771.23389193,0.00030555,10]
[381746557,1756329485936,-200299.32488721,0.00030555,30]
[381746558,1756329485961,-500.0,0.00030555,10]
[381746559,1756329485985,-500.0,0.00030555,10]
[381746560,1756329486009,-500.0,0.00030555,10]
[381746561,1756329486032,-500.0,0.00030555,10]
[381746562,1756329486055,-500.0,0.00030555,10]
[381746563,1756329486078,-500.0,0.00030555,10]
[381746564,1756329486104,-512.49169784,0.00030555,10]
[381746565,1756329486129,-250.0,0.00030555,10]
[381746566,1756329486153,-254.573809,0.00030555,10]
[381746567,1756329504289,-73313.02,0.00022,7]
[381746568,1756329504314,-7496.1,0.00022,7]
[381746569,1756329504339,-180.060055,0.00022,7]
[381746570,1756329504367,-284.263122,0.00022,7]
[381746571,1756329504392,-284.263122,0.00022,7]
[381746572,1756329504416,-284.263122,0.00022,7]
[381746573,1756329504440,-284.263114,0.00022,7]
[381746574,1756329504466,-178.957821,0.00022,10]
[381746575,1756329504490,-151.0,0.00022,7]
[381746576,1756329504514,-151.0,0.00022,7]
[381746577,1756329504537,-151.0,0.00022,7]
[381746578,1756329504562,-216.14835892,0.00022,7]
[381746579,1756329504586,-417.15472785,0.00022,7]
[381746580,1756329504612,-529.56067766,0.00022,7]
[381746581,1756329504641,-425.44119842,0.00022,7]
[381746582,1756329504667,-160.0,0.00022,7]
[381746583,1756329504695,-151.0,0.000221,10]
[381746584,1756329504724,-239.21947,0.00022191,7]
[381746585,1756329504748,-151.0,0.00022191,7]
[381746586,1756329504774,-151.0,0.00022191,7]
[381746587,1756329504802,-151.0,0.00022191,7]
[381746588,1756329505056,-151.0,0.00022191,7]
[381746589,1756329505083,-151.0,0.00022191,7]
[381746590,1756329505111,-151.0,0.00022191,7]
[381746591,1756329505138,-151.0,0.00022191,7]
[381746592,1756329505165,-151.0,0.00022191,7]
[381746593,1756329505191,-152.603382,0.00022191,7]
[381746594,1756329505216,-151.0,0.00022191,7]
[381746595,1756329505241,-151.0,0.00022191,7]
[381746596,1756329505266,-151.0,0.00022191,7]
[381746597,1756329505291,-216.5,0.00022191,7]
[381746598,1756329505318,-151.0,0.00022191,7]
[381746599,1756329505346,-156.582629,0.00022191,7]
[381746600,1756329505375,-151.0,0.00022191,7]
[381746601,1756329505402,-244.219784,0.00022191,7]
[381746602,1756329505429,-151.0,0.00022191,7]
[381746603,1756329505456,-151.0,0.00022191,7]
[381746604,1756329505482,-151.0,0.00022191,7]
[381746605,1756329505508,-292.534474,0.00022191,7]
[381746606,1756329505535,-292.534474,0.00022191,7]
[381746607,1756329505561,-292.534474,0.00022191,7]
[381746608,1756329505588,-292.534474,0.00022191,7]
[381746609,1756329505616,-292.534474,0.00022191,7]
[381746610,1756329505645,-292.534474,0.00022191,7]
[381746611,1756329505671,-292.534474,0.00022191,7]
[381746612,1756329505697,-292.534474,0.00022191,7]
[381746613,1756329505725,-292.534474,0.00022191,7]
[381746614,1756329505750,-292.534474,0.00022191,7]
[381746615,1756329505775,-292.534474,0.00022191,7]
[381746616,1756329505801,-292.534474,0.00022191,7]
[381746617,1756329505826,-151.0,0.00022191,7]
[381746618,1756329505851,-225.865544,0.00022191,7]
[381746619,1756329505876,-151.0,0.00022191,7]
[381746620,1756329505901,-151.0,0.00022191,7]
[381746621,1756329505927,-288.666736,0.00022191,7]
[381746622,1756329505952,-270.367982,0.00022191,7]